[Event "Snabbschacks-SM 2025"]
[Site "Norrköping, Sweden"]
[Date "2025.09.27"]
[Round "1.9"]
[White "Helin, Mikael"]
[Black "Bohman Karlholm, Adrian"]
[Result "0-1"]
[TimeControl "25 min + 10 sec/move"]
[WhiteTitle "CM"]
[WhiteElo "1937"]
[BlackElo "2102"]

1. c4 {[%clk 00:25:12]} {[%emt 00:00:07]} e6 {[%clk 00:25:16]} {[%emt
00:00:03]} 2. Nc3 {[%clk 00:25:14]} {[%emt 00:00:08]} d5 {[%clk 00:25:23]}
{[%emt 00:00:03]} 3. e3 {[%clk 00:25:18]} {[%emt 00:00:07]} Nf6 {[%clk
00:25:21]} {[%emt 00:00:12]} 4. b3 {[%clk 00:25:03]} {[%emt 00:00:25]} c5
{[%clk 00:24:52]} {[%emt 00:00:39]} 5. Bb2 {[%emt 00:04:30]} d4 {[%clk
00:22:46]} {[%emt 00:00:02]} 6. Nce2 {[%clk 00:23:04]} {[%emt 00:00:02]} Nc6
{[%clk 00:22:37]} {[%emt 00:00:20]} 7. exd4 {[%clk 00:19:19]} {[%emt 00:03:55]}
cxd4 {[%clk 00:22:42]} {[%emt 00:00:04]} 8. Nf3 {[%clk 00:18:41]} {[%emt
00:00:49]} e5 {[%clk 00:22:29]} {[%emt 00:00:22]} 9. a3 {[%clk 00:18:51]}
{[%emt 00:00:02]} Bg4 {[%clk 00:19:42]} {[%emt 00:02:56]} 10. d3 {[%clk
00:17:48]} {[%emt 00:01:14]} Bxf3 {[%clk 00:18:32]} {[%emt 00:01:19]} 11. gxf3
{[%clk 00:17:56]} {[%emt 00:00:03]} a5 {[%clk 00:17:44]} {[%emt 00:00:58]} 12.
Bg2 {[%clk 00:16:45]} {[%emt 00:01:20]} Bd6 {[%clk 00:17:39]} {[%emt 00:00:15]}
13. Rc1 {[%clk 00:16:19]} {[%emt 00:00:36]} Qe7 {[%clk 00:17:24]} {[%emt
00:00:24]} 14. Ra1 {[%clk 00:16:08]} {[%emt 00:00:23]} Nd8 {[%clk 00:17:09]}
{[%emt 00:00:24]} 15. Ng3 {[%clk 00:15:21]} {[%emt 00:00:57]} g6 {[%clk
00:16:11]} {[%emt 00:01:08]} 16. Bc1 {[%clk 00:12:43]} {[%emt 00:02:49]} Ne6
{[%clk 00:16:03]} {[%emt 00:00:17]} 17. O-O {[%clk 00:12:52]} {[%emt 00:00:02]}
h5 {[%clk 00:14:35]} {[%emt 00:01:38]} 18. Re1 {[%clk 00:06:28]} {[%emt
00:06:33]} h4 {[%clk 00:14:14]} {[%emt 00:00:32]} 19. Ne2 {[%clk 00:06:38]} g5
{[%clk 00:10:47]} {[%emt 00:03:37]} 20. Bh3 {[%clk 00:06:38]} {[%emt 00:00:09]}
Rg8 {[%clk 00:08:50]} {[%emt 00:02:07]} 21. Bg4 {[%clk 00:06:36]} {[%emt
00:00:13]} Nxg4 {[%clk 00:08:08]} {[%emt 00:00:52]} 22. fxg4 {[%clk 00:06:44]}
{[%emt 00:00:02]} Qf6 {[%clk 00:08:03]} {[%emt 00:00:15]} 23. c5 {[%clk
00:04:23]} {[%emt 00:02:31]} Bxc5 {[%clk 00:07:17]} {[%emt 00:00:56]} 24. f4
{[%clk 00:04:22]} {[%emt 00:00:12]} gxf4 {[%clk 00:06:49]} {[%emt 00:00:37]} 25.
Nxf4 {[%clk 00:03:24]} {[%emt 00:01:08]} Nxf4 {[%clk 00:06:39]} {[%emt
00:00:20]} 26. Qf3 {[%clk 00:03:16]} {[%emt 00:00:17]} Qe6 {[%clk 00:02:53]}
{[%emt 00:03:57]} 27. h3 {[%clk 00:01:47]} {[%emt 00:01:39]} Nxh3+ {[%clk
00:02:56]} {[%emt 00:00:07]} 28. Kf1 {[%clk 00:01:47]} {[%emt 00:00:09]} Rxg4
{[%clk 00:02:13]} {[%emt 00:00:54]} 29. Qxb7 {[%clk 00:01:55]} {[%emt
00:00:02]} Rg1+ {[%clk 00:01:28]} {[%emt 00:00:55]} 30. Ke2 {[%clk 00:02:05]}
Qg4+ {[%clk 00:01:30]} {[%emt 00:00:08]} 31. Kd2 {[%clk 00:02:13]} {[%emt
00:00:02]} Rg2+ {[%clk 00:01:36]} {[%emt 00:00:04]} 0-1

[Event "Snabbschacks-SM 2025"]
[Site "Norrköping, Sweden"]
[Date "2025.09.27"]
[Round "3.5"]
[White "Muntean, Victor"]
[Black "Sandhu, Ludwig"]
[Result "1/2-1/2"]
[TimeControl "25 min + 10 sec/move"]
[WhiteElo "2151"]
[BlackElo "1806"]

1. e4 {[%clk 00:25:18]} {[%emt 00:00:01]} e6 {[%clk 00:25:19]} {[%emt
00:00:02]} 2. d4 {[%clk 00:25:27]} {[%emt 00:00:01]} d5 {[%clk 00:25:27]}
{[%emt 00:00:02]} 3. e5 {[%clk 00:25:35]} {[%emt 00:00:02]} c5 {[%clk
00:25:36]} {[%emt 00:00:02]} 4. c3 {[%clk 00:25:43]} Nc6 {[%clk 00:25:45]}
{[%emt 00:00:02]} 5. Nf3 {[%clk 00:25:52]} {[%emt 00:00:01]} Qb6 {[%clk
00:25:53]} {[%emt 00:00:02]} 6. Bd3 {[%clk 00:26:00]} {[%emt 00:00:01]} Bd7
{[%clk 00:26:02]} {[%emt 00:00:02]} 7. dxc5 {[%clk 00:26:08]} {[%emt 00:00:02]}
Bxc5 {[%clk 00:26:09]} {[%emt 00:00:03]} 8. O-O {[%clk 00:26:08]} {[%emt
00:00:09]} a5 {[%clk 00:25:13]} {[%emt 00:01:06]} 9. Qe2 {[%clk 00:26:04]}
{[%emt 00:00:14]} Nge7 {[%clk 00:22:38]} {[%emt 00:02:46]} 10. Nbd2 {[%clk
00:25:45]} {[%emt 00:00:30]} Ng6 {[%clk 00:21:57]} {[%emt 00:00:50]} 11. Nb3
{[%clk 00:24:58]} {[%emt 00:00:57]} Be7 {[%clk 00:21:29]} {[%emt 00:00:38]} 12.
Nbd4 {[%clk 00:22:59]} {[%emt 00:02:09]} Bc5 {[%clk 00:18:07]} {[%emt
00:03:31]} 13. Nb5 {[%clk 00:21:56]} {[%emt 00:01:14]} Na7 {[%clk 00:10:58]}
{[%emt 00:07:19]} 14. Nxa7 {[%clk 00:21:09]} {[%emt 00:00:56]} Qxa7 {[%clk
00:11:06]} {[%emt 00:00:02]} 15. h4 {[%clk 00:20:46]} {[%emt 00:00:33]} Ne7
{[%clk 00:10:15]} {[%emt 00:01:02]} 16. Re1 {[%clk 00:17:45]} {[%emt 00:03:12]}
Qb6 {[%clk 00:09:23]} {[%emt 00:01:02]} 17. Be3 {[%clk 00:15:32]} {[%emt
00:02:23]} Bxe3 {[%clk 00:08:58]} {[%emt 00:00:35]} 18. Qxe3 {[%clk 00:15:40]}
{[%emt 00:00:02]} Qxe3 {[%clk 00:09:03]} {[%emt 00:00:05]} 19. Rxe3 {[%clk
00:15:48]} {[%emt 00:00:02]} a4 {[%clk 00:08:37]} {[%emt 00:00:35]} 20. Nd4
{[%clk 00:15:06]} {[%emt 00:00:52]} Ra5 {[%clk 00:07:50]} {[%emt 00:00:57]} 21.
a3 {[%clk 00:13:57]} {[%emt 00:01:19]} Nc6 {[%clk 00:05:49]} {[%emt 00:02:11]}
22. Nb5 {[%clk 00:11:16]} {[%emt 00:02:51]} Nxe5 {[%clk 00:05:44]} {[%emt
00:00:15]} 23. Nd6+ {[%clk 00:11:25]} Ke7 {[%clk 00:05:36]} {[%emt 00:00:18]}
24. Nxb7 {[%clk 00:11:33]} {[%emt 00:00:02]} Ra7 {[%clk 00:05:43]} {[%emt
00:00:03]} 25. Nc5 {[%clk 00:11:41]} {[%emt 00:00:01]} Nxd3 {[%clk 00:05:36]}
{[%emt 00:00:18]} 26. Nxd3 {[%clk 00:11:42]} {[%emt 00:00:09]} Bb5 {[%clk
00:05:27]} {[%emt 00:00:19]} 27. Nb4 {[%clk 00:11:34]} {[%emt 00:00:18]} Kd6
{[%clk 00:05:00]} {[%emt 00:00:38]} 28. Rd1 {[%clk 00:11:34]} {[%emt 00:00:09]}
Bc4 {[%clk 00:04:55]} {[%emt 00:00:14]} 29. h5 {[%clk 00:11:02]} {[%emt
00:00:43]} h6 {[%clk 00:04:49]} {[%emt 00:00:16]} 30. Rg3 {[%clk 00:10:55]}
{[%emt 00:00:17]} Rg8 {[%clk 00:04:44]} {[%emt 00:00:15]} 31. Rd2 {[%clk
00:10:44]} {[%emt 00:00:21]} g5 {[%clk 00:04:41]} {[%emt 00:00:13]} 32. hxg6
{[%clk 00:10:13]} {[%emt 00:00:40]} Rxg6 {[%clk 00:04:45]} {[%emt 00:00:06]} 33.
Rxg6 {[%clk 00:09:49]} {[%emt 00:00:34]} fxg6 {[%clk 00:04:54]} {[%emt
00:00:01]} 34. Nc2 {[%clk 00:09:50]} {[%emt 00:00:09]} Kc5 {[%clk 00:04:31]}
{[%emt 00:00:33]} 35. f4 {[%clk 00:08:58]} {[%emt 00:01:02]} g5 {[%clk
00:02:48]} {[%emt 00:01:52]} 36. g3 {[%clk 00:09:06]} {[%emt 00:00:03]} gxf4
{[%clk 00:02:33]} {[%emt 00:00:26]} 37. gxf4 {[%clk 00:09:14]} Rg7+ {[%clk
00:02:26]} {[%emt 00:00:17]} 38. Kf2 {[%clk 00:08:35]} {[%emt 00:00:49]} h5
{[%clk 00:02:35]} {[%emt 00:00:01]} 39. Nd4 {[%clk 00:08:32]} {[%emt 00:00:12]}
Kd6 {[%clk 00:02:33]} {[%emt 00:00:12]} 40. Nf3 {[%clk 00:08:35]} {[%emt
00:00:08]} Bb3 {[%clk 00:01:27]} {[%emt 00:01:16]} 41. Ke3 {[%clk 00:08:34]}
{[%emt 00:00:10]} Rg3 {[%clk 00:01:34]} {[%emt 00:00:03]} 42. Kf2 {[%clk
00:07:58]} {[%emt 00:00:47]} Rg4 {[%clk 00:01:37]} {[%emt 00:00:06]} 43. Rd4
{[%clk 00:07:50]} {[%emt 00:00:19]} h4 {[%clk 00:01:28]} {[%emt 00:00:19]} 44.
f5 {[%clk 00:06:33]} {[%emt 00:01:27]} exf5 {[%clk 00:00:53]} {[%emt 00:00:46]}
45. Nxh4 {[%clk 00:06:41]} {[%emt 00:00:02]} Ke5 {[%clk 00:00:29]} {[%emt
00:00:34]} 46. Nf3+ {[%clk 00:06:38]} {[%emt 00:00:12]} Kd6 {[%clk 00:00:29]}
{[%emt 00:00:10]} 47. Ke3 {[%clk 00:04:30]} {[%emt 00:02:18]} Rg2 {[%clk
00:00:22]} {[%emt 00:00:17]} 48. Rd2 {[%clk 00:04:37]} {[%emt 00:00:03]} Rg4
{[%clk 00:00:21]} {[%emt 00:00:12]} 49. Rf2 {[%clk 00:03:52]} {[%emt 00:00:55]}
Re4+ {[%clk 00:00:15]} {[%emt 00:00:16]} 50. Kd2 {[%clk 00:03:48]} {[%emt
00:00:14]} Bc4 {[%clk 00:00:20]} {[%emt 00:00:05]} 51. Ng5 {[%clk 00:01:56]}
{[%emt 00:02:02]} Rg4 {[%clk 00:00:25]} {[%emt 00:00:04]} 52. Rxf5 {[%clk
00:01:46]} {[%emt 00:00:21]} Rg2+ {[%clk 00:00:34]} 53. Ke3 {[%clk 00:01:55]}
{[%emt 00:00:01]} Rxb2 {[%clk 00:00:38]} {[%emt 00:00:06]} 54. Rf6+ {[%clk
00:02:01]} {[%emt 00:00:04]} Ke5 {[%clk 00:00:23]} {[%emt 00:00:25]} 55. Rc6
{[%clk 00:01:50]} {[%emt 00:00:21]} Re2+ {[%clk 00:00:25]} {[%emt 00:00:08]} 56.
Kf3 {[%clk 00:01:59]} Rc2 {[%clk 00:00:34]} 57. Nf7+ {[%clk 00:02:06]} {[%emt
00:00:03]} Kf5 {[%clk 00:00:33]} {[%emt 00:00:11]} 58. Nd6+ {[%clk 00:02:12]}
{[%emt 00:00:04]} Kg5 {[%clk 00:00:37]} {[%emt 00:00:06]} 59. Nf7+ {[%clk
00:01:47]} {[%emt 00:00:35]} Kf5 {[%clk 00:00:44]} {[%emt 00:00:03]} 60. Nd6+
{[%clk 00:01:41]} {[%emt 00:00:16]} Kg5 {[%clk 00:00:53]} {[%emt 00:00:01]} 61.
Nf7+ {[%clk 00:01:24]} {[%emt 00:00:27]} Kf5 {[%clk 00:01:02]} {[%emt
00:00:01]} 62. Nd6+ {[%clk 00:01:32]} {[%emt 00:00:02]} Ke5 {[%emt 00:00:04]}
1/2-1/2

[ePGN "0.1;DGT LiveChess/2.2.7"]

[Event "Snabbschacks-SM 2025"]
[Site "Norrköping, Sweden"]
[Date "2025.09.27"]
[Round "5.1"]
[White "Religa, Marek"]
[Black "Grahn, Vidar"]
[Result "1/2-1/2"]
[TimeControl "25 min + 10 sec/move"]
[BlackTitle "FM"]
[WhiteElo "2207"]
[BlackElo "2236"]

1. e4 {[%clk 00:25:20]} e5 {[%clk 00:25:19]} {[%emt 00:00:01]} 2. d4 {[%clk
00:25:27]} {[%emt 00:00:03]} exd4 {[%clk 00:25:27]} {[%emt 00:00:02]} 3. Qxd4
{[%clk 00:25:36]} Nc6 {[%clk 00:25:26]} {[%emt 00:00:11]} 4. Qe3 {[%clk
00:25:43]} {[%emt 00:00:03]} Nf6 {[%clk 00:25:10]} {[%emt 00:00:26]} 5. Nc3
{[%clk 00:25:52]} {[%emt 00:00:01]} Bb4 {[%clk 00:25:11]} {[%emt 00:00:10]} 6.
Bd2 {[%clk 00:26:01]} d6 {[%clk 00:24:41]} {[%emt 00:00:39]} 7. O-O-O {[%clk
00:25:59]} {[%emt 00:00:12]} Qe7 {[%clk 00:24:25]} {[%emt 00:00:25]} 8. f3
{[%clk 00:25:47]} {[%emt 00:00:23]} Be6 {[%clk 00:24:26]} {[%emt 00:00:08]} 9.
Nge2 {[%clk 00:25:54]} {[%emt 00:00:03]} O-O-O {[%clk 00:23:49]} {[%emt
00:00:47]} 10. Nf4 {[%clk 00:24:59]} {[%emt 00:01:06]} Rhe8 {[%clk 00:23:20]}
{[%emt 00:00:40]} 11. Bb5 {[%clk 00:23:55]} {[%emt 00:01:14]} Bc5 {[%clk
00:22:38]} {[%emt 00:00:51]} 12. Qe1 {[%clk 00:24:00]} {[%emt 00:00:05]} Bb6
{[%clk 00:21:13]} {[%emt 00:01:35]} 13. Qg3 {[%clk 00:23:28]} {[%emt 00:00:42]}
Qf8 {[%clk 00:19:19]} {[%emt 00:02:04]} 14. Ncd5 {[%clk 00:22:17]} {[%emt
00:01:21]} Nd7 {[%clk 00:19:04]} {[%emt 00:00:25]} 15. Bc3 {[%clk 00:21:46]}
{[%emt 00:00:41]} Nce5 {[%clk 00:18:46]} {[%emt 00:00:27]} 16. Nxe6 {[%clk
00:21:03]} {[%emt 00:00:53]} Rxe6 {[%clk 00:18:22]} {[%emt 00:00:35]} 17. Nxb6+
{[%clk 00:19:41]} {[%emt 00:01:33]} Nxb6 {[%clk 00:17:47]} {[%emt 00:00:44]} 18.
f4 {[%clk 00:19:05]} {[%emt 00:00:46]} Ned7 {[%clk 00:17:54]} {[%emt 00:00:03]}
19. Rhe1 {[%clk 00:17:46]} {[%emt 00:01:29]} f6 {[%clk 00:16:14]} {[%emt
00:01:51]} 20. Bd4 {[%clk 00:15:58]} {[%emt 00:01:58]} Kb8 {[%clk 00:15:23]}
{[%emt 00:01:01]} 21. Qh3 {[%clk 00:15:21]} {[%emt 00:00:46]} Qg8 {[%clk
00:13:59]} {[%emt 00:01:35]} 22. Re3 {[%clk 00:14:44]} {[%emt 00:00:48]} c6
{[%clk 00:13:17]} {[%emt 00:00:52]} 23. Bd3 {[%clk 00:13:57]} {[%emt 00:00:57]}
c5 {[%clk 00:13:03]} {[%emt 00:00:24]} 24. Bc3 {[%clk 00:14:04]} {[%emt
00:00:02]} c4 {[%clk 00:13:08]} {[%emt 00:00:05]} 25. Be2 {[%clk 00:14:01]}
{[%emt 00:00:13]} Rde8 {[%clk 00:12:42]} {[%emt 00:00:36]} 26. Bg4 {[%clk
00:13:00]} {[%emt 00:01:10]} R6e7 {[%clk 00:11:44]} {[%emt 00:01:09]} 27. Bb4
{[%clk 00:12:12]} {[%emt 00:00:58]} Nc5 {[%clk 00:11:26]} {[%emt 00:00:28]} 28.
Bf3 {[%clk 00:06:01]} {[%emt 00:06:22]} Nxe4 {[%clk 00:10:21]} {[%emt
00:01:14]} 29. Bxe4 {[%clk 00:05:38]} {[%emt 00:00:33]} Rxe4 {[%clk 00:10:27]}
{[%emt 00:00:04]} 30. Bxd6+ {[%clk 00:05:47]} {[%emt 00:00:02]} Ka8 {[%clk
00:10:35]} {[%emt 00:00:01]} 31. Rxe4 {[%clk 00:04:32]} {[%emt 00:01:25]} Rxe4
{[%clk 00:10:44]} 32. Bc7 {[%clk 00:04:26]} {[%emt 00:00:16]} Re8 {[%clk
00:10:31]} {[%emt 00:00:23]} 33. Bxb6 {[%clk 00:04:08]} {[%emt 00:00:28]} axb6
{[%clk 00:10:39]} {[%emt 00:00:02]} 34. Qa3+ {[%clk 00:03:17]} {[%emt
00:01:01]} Kb8 {[%clk 00:10:46]} {[%emt 00:00:03]} 35. Qd6+ {[%clk 00:03:00]}
{[%emt 00:00:26]} Ka7 {[%clk 00:10:51]} {[%emt 00:00:06]} 36. Qd7 {[%clk
00:01:38]} {[%emt 00:01:32]} Qe6 {[%clk 00:10:34]} {[%emt 00:00:26]} 37. Qxe6
{[%clk 00:01:40]} {[%emt 00:00:09]} Rxe6 {[%clk 00:10:43]} {[%emt 00:00:01]} 38.
Rd7 {[%clk 00:01:48]} {[%emt 00:00:02]} Re4 {[%clk 00:10:04]} {[%emt 00:00:49]}
39. g3 {[%clk 00:01:31]} {[%emt 00:00:27]} Re2 {[%clk 00:09:54]} {[%emt
00:00:20]} 40. h4 {[%clk 00:01:36]} {[%emt 00:00:05]} g6 {[%clk 00:09:18]}
{[%emt 00:00:47]} 41. Rxh7 {[%clk 00:01:42]} {[%emt 00:00:03]} Rg2 {[%clk
00:09:27]} 42. Rg7 {[%clk 00:01:03]} {[%emt 00:00:50]} Rxg3 {[%clk 00:09:22]}
{[%emt 00:00:14]} 43. f5 {[%clk 00:00:23]} {[%emt 00:00:50]} g5 {[%clk
00:08:55]} {[%emt 00:00:36]} 44. hxg5 {[%clk 00:00:29]} {[%emt 00:00:05]} fxg5
{[%clk 00:09:04]} {[%emt 00:00:02]} 45. Kd2 {[%clk 00:00:21]} {[%emt 00:00:17]}
Ka6 {[%clk 00:07:53]} {[%emt 00:01:20]} 46. Ke2 {[%clk 00:00:30]} {[%emt
00:00:02]} b5 {[%clk 00:06:55]} {[%emt 00:01:08]} 47. f6 {[%clk 00:00:38]}
{[%emt 00:00:02]} g4 {[%clk 00:06:26]} {[%emt 00:00:39]} 48. Rg6 {[%clk
00:00:23]} {[%emt 00:00:25]} Rf3 {[%clk 00:06:18]} {[%emt 00:00:17]} 49. Rxg4
{[%clk 00:00:15]} {[%emt 00:00:19]} Rxf6 {[%clk 00:06:27]} {[%emt 00:00:01]} 50.
Rg8 {[%clk 00:00:23]} {[%emt 00:00:02]} Rh6 {[%clk 00:06:32]} {[%emt 00:00:06]}
51. Kd2 {[%clk 00:00:29]} {[%emt 00:00:03]} Rh3 {[%clk 00:06:33]} {[%emt
00:00:09]} 52. Re8 {[%clk 00:00:35]} {[%emt 00:00:04]} b4 {[%clk 00:06:32]}
{[%emt 00:00:12]} 1/2-1/2

[Event "Snabbschacks-SM 2025"]
[Site "Norrköping, Sweden"]
[Date "2025.09.27"]
[Round "1.10"]
[White "Muntean, Victor"]
[Black "Bergqvist, Morris"]
[Result "1-0"]
[TimeControl "25 min + 10 sec/move"]
[WhiteElo "2151"]
[BlackElo "1790"]

1. e4 {[%clk 00:25:18]} {[%emt 00:00:01]} c6 {[%clk 00:25:09]} {[%emt
00:00:12]} 2. d4 {[%clk 00:25:21]} {[%emt 00:00:07]} d5 {[%clk 00:25:16]}
{[%emt 00:00:02]} 3. exd5 {[%clk 00:25:27]} {[%emt 00:00:05]} cxd5 {[%clk
00:25:24]} {[%emt 00:00:02]} 4. Nf3 {[%clk 00:25:29]} {[%emt 00:00:07]} Nf6
{[%clk 00:23:39]} {[%emt 00:01:55]} 5. Ne5 {[%clk 00:25:11]} {[%emt 00:00:29]}
Nc6 {[%clk 00:22:17]} {[%emt 00:01:32]} 6. c3 {[%clk 00:25:13]} {[%emt
00:00:08]} Bd7 {[%clk 00:20:21]} {[%emt 00:02:06]} 7. Bd3 {[%clk 00:24:49]}
{[%emt 00:00:34]} e6 {[%clk 00:19:49]} {[%emt 00:00:43]} 8. O-O {[%clk
00:24:02]} {[%emt 00:00:55]} Be7 {[%clk 00:19:45]} {[%emt 00:00:14]} 9. Re1
{[%clk 00:23:48]} {[%emt 00:00:25]} O-O {[%clk 00:19:44]} {[%emt 00:00:11]} 10.
Nd2 {[%clk 00:23:41]} {[%emt 00:00:17]} Nxe5 {[%clk 00:19:16]} {[%emt
00:00:38]} 11. dxe5 {[%clk 00:23:38]} {[%emt 00:00:13]} Ne8 {[%clk 00:18:59]}
{[%emt 00:00:27]} 12. Re3 {[%clk 00:17:26]} {[%emt 00:06:22]} g6 {[%clk
00:15:39]} {[%emt 00:03:31]} 13. Rh3 {[%clk 00:16:16]} {[%emt 00:01:19]} Ng7
{[%clk 00:13:45]} {[%emt 00:02:05]} 14. Nf3 {[%clk 00:15:25]} {[%emt 00:01:01]}
f6 {[%clk 00:12:09]} {[%emt 00:01:46]} 15. Bh6 {[%clk 00:14:33]} {[%emt
00:01:01]} fxe5 {[%clk 00:08:49]} {[%emt 00:03:31]} 16. Nxe5 {[%clk 00:14:11]}
{[%emt 00:00:32]} Bf6 {[%clk 00:06:23]} {[%emt 00:02:36]} 17. Bxg6 {[%clk
00:10:02]} {[%emt 00:04:20]} hxg6 {[%clk 00:04:49]} {[%emt 00:01:44]} 18. Nxg6
{[%clk 00:10:09]} {[%emt 00:00:02]} Qe8 {[%clk 00:03:49]} {[%emt 00:01:09]} 19.
Nxf8 {[%clk 00:09:59]} {[%emt 00:00:21]} Qxf8 {[%clk 00:03:57]} {[%emt
00:00:03]} 20. Rg3 {[%clk 00:09:47]} {[%emt 00:00:21]} Re8 {[%clk 00:03:18]}
{[%emt 00:00:49]} 21. h4 {[%clk 00:08:52]} {[%emt 00:01:05]} Qf7 {[%clk
00:02:13]} {[%emt 00:01:15]} 22. h5 {[%clk 00:07:28]} {[%emt 00:01:34]} Kh8
{[%clk 00:02:10]} {[%emt 00:00:14]} 23. Bg5 {[%clk 00:05:59]} {[%emt 00:01:38]}
Nf5 {[%clk 00:01:22]} {[%emt 00:00:58]} 24. Bxf6+ {[%clk 00:05:43]} {[%emt
00:00:25]} Qxf6 {[%clk 00:01:31]} {[%emt 00:00:02]} 25. Rg6 {[%clk 00:05:46]}
{[%emt 00:00:07]} Qf7 {[%clk 00:00:54]} {[%emt 00:00:47]} 26. Qe2 {[%clk
00:03:47]} {[%emt 00:02:09]} Rg8 {[%clk 00:00:14]} {[%emt 00:00:50]} 27. Qe5+
{[%clk 00:03:54]} {[%emt 00:00:03]} Kh7 {[%clk 00:00:21]} {[%emt 00:00:03]} 28.
Rxg8 {[%clk 00:02:55]} {[%emt 00:01:09]} Qxg8 {[%clk 00:00:21]} {[%emt
00:00:10]} 29. Qf4 {[%clk 00:02:58]} {[%emt 00:00:07]} Qg7 {[%clk 00:00:22]}
{[%emt 00:00:09]} 30. Re1 {[%clk 00:03:01]} {[%emt 00:00:06]} Bc8 {[%clk
00:00:17]} {[%emt 00:00:15]} 31. g4 {[%clk 00:02:23]} {[%emt 00:00:49]} Nh6
{[%clk 00:00:17]} {[%emt 00:00:10]} 32. g5 {[%clk 00:02:31]} {[%emt 00:00:03]}
Nf5 {[%clk 00:00:22]} {[%emt 00:00:05]} 33. g6+ {[%clk 00:02:12]} {[%emt
00:00:28]} Kh8 {[%clk 00:00:17]} {[%emt 00:00:14]} 34. Qxf5 {[%clk 00:02:15]}
{[%emt 00:00:08]} exf5 {[%clk 00:00:25]} {[%emt 00:00:02]} 35. Re8+ {[%clk
00:02:23]} {[%emt 00:00:02]} Qg8 {[%clk 00:00:30]} {[%emt 00:00:04]} 36. Rxg8+
{[%clk 00:02:28]} {[%emt 00:00:06]} Kxg8 {[%clk 00:00:40]} 37. h6 {[%clk
00:02:29]} {[%emt 00:00:09]} f4 {[%clk 00:00:17]} {[%emt 00:00:33]} 38. Kg2
{[%clk 00:02:35]} {[%emt 00:00:03]} Bf5 {[%clk 00:00:26]} {[%emt 00:00:02]} 39.
Kf3 {[%clk 00:02:29]} {[%emt 00:00:16]} Bxg6 {[%clk 00:00:33]} {[%emt
00:00:03]} 40. Kxf4 {[%clk 00:02:38]} Kf7 {[%clk 00:00:13]} {[%emt 00:00:30]}
41. Ke5 {[%clk 00:02:44]} {[%emt 00:00:04]} Be4 {[%clk 00:00:18]} {[%emt
00:00:05]} 42. c4 {[%clk 00:02:46]} {[%emt 00:00:08]} Bb1 {[%clk 00:00:14]}
{[%emt 00:00:14]} 43. cxd5 {[%clk 00:02:46]} {[%emt 00:00:09]} Bxa2 {[%clk
00:00:12]} {[%emt 00:00:12]} 44. h7 {[%clk 00:02:49]} {[%emt 00:00:08]} Kg7
{[%clk 00:00:21]} {[%emt 00:00:01]} 45. d6 {[%clk 00:02:57]} {[%emt 00:00:02]}
Kxh7 {[%clk 00:00:16]} {[%emt 00:00:14]} 46. d7 {[%clk 00:03:06]} {[%emt
00:00:02]} 1-0